bitfinex-derivatives/quotes_BTCF0:USTF0_20240820
["timestamp","ask_amount","ask_price","bid_price","bid_amount"]
[1724190205449,0.0928,59238.0,59237.0,0.922697]
[1724190205450,0.0464,59238.0,59237.0,0.922697]
[1724190206548,0.0473,59242.0,59241.0,0.084392]
[1724190206854,0.05008613,59242.0,59241.0,0.201092]
[1724190207053,0.0473,59242.0,59241.0,0.201092]
[1724190207357,0.00025329,59243.0,59242.0,0.08439]
[1724190207548,0.00303939,59243.0,59242.0,0.44519]
[1724190208146,0.00025329,59243.0,59242.0,0.44519]
[1724190208352,0.00303938,59243.0,59242.0,0.44519]
[1724190208554,0.00303938,59243.0,59242.0,0.44619]
[1724190209251,0.00025329,59243.0,59242.0,0.44619]
[1724190209452,0.00303937,59243.0,59242.0,0.44619]
[1724190209751,0.00025329,59243.0,59242.0,0.44619]
[1724190210553,0.00303937,59243.0,59242.0,0.44619]
[1724190211151,0.00025329,59243.0,59242.0,0.44619]
[1724190211554,0.00303937,59243.0,59242.0,0.44619]
[1724190211748,0.00025329,59243.0,59242.0,0.56289]
[1724190213061,0.00025329,59243.0,59242.0,0.44619]
[1724190213262,0.00025329,59243.0,59242.0,0.56289]
[1724190214356,0.00303934,59243.0,59242.0,0.56289]
[1724190214751,0.00025329,59243.0,59242.0,0.56289]
[1724190216562,0.00025329,59243.0,59242.0,0.69765395]
[1724190216764,0.0491,59245.0,59244.0,0.084387]
[1724190218170,0.0491,59245.0,59244.0,0.085387]
[1724190219052,0.0491,59245.0,59244.0,0.806987]
[1724190219857,0.0491,59245.0,59244.0,0.807987]
[1724190222163,0.0491,59245.0,59244.0,0.924687]
[1724190223062,0.0491,59245.0,59244.0,0.93566235]
[1724190226072,0.0491,59245.0,59244.0,0.81896235]
[1724190226266,0.0491,59245.0,59244.0,0.93566235]
[1724190227671,0.0491,59245.0,59244.0,0.7236]
[1724190227672,0.133486,59245.0,59244.0,0.7236]
[1724190227872,0.133486,59245.0,59244.0,0.8403]
[1724190228369,0.133486,59245.0,59244.0,0.90765511]
[1724190228770,0.13627222,59245.0,59244.0,0.90765511]
[1724190228971,0.05188622,59245.0,59244.0,0.99204211]
[1724190229173,0.05188622,59245.0,59244.0,0.924687]
[1724190230579,0.05188622,59245.0,59244.0,0.90768774]
[1724190230769,0.95824622,59245.0,59244.0,0.7236]
[1724190231070,0.55824622,59245.0,59244.0,0.90768774]
[1724190231573,0.05188622,59245.0,59244.0,0.90768774]
[1724190232172,0.05188621,59245.0,59244.0,0.90768774]
[1724190232765,0.05188621,59245.0,59244.0,0.63127474]
[1724190233174,0.05188621,59245.0,59244.0,0.563887]
[1724190235368,0.55824621,59245.0,59244.0,0.563887]
[1724190236377,0.5582462,59245.0,59244.0,0.563887]
[1724190236614,0.55546,59245.0,59244.0,0.563887]
[1724190236876,0.5582462,59245.0,59244.0,0.563887]
[1724190237901,0.55546,59245.0,59244.0,0.563887]
[1724190238069,0.5582462,59245.0,59244.0,0.563887]
[1724190238268,0.5582462,59245.0,59244.0,0.63132107]
[1724190240282,0.5582462,59245.0,59244.0,0.563887]
[1724190240677,0.5582462,59245.0,59244.0,0.2705196]
[1724190241079,0.5582462,59245.0,59244.0,0.203087]
[1724190242484,0.5582462,59245.0,59244.0,0.25365417]
[1724190243390,0.639846,59245.0,59244.0,0.25365417]
[1724190243590,0.64263221,59245.0,59244.0,0.25365417]
[1724190245475,0.13627221,59245.0,59244.0,0.25365417]
[1724190245678,0.05188621,59245.0,59244.0,0.25365417]
[1724190245884,0.55824621,59245.0,59244.0,0.25365417]
[1724190246582,0.05188621,59245.0,59244.0,0.25365417]
[1724190246979,0.05188621,59245.0,59244.0,0.61445417]
[1724190247683,0.0518862,59245.0,59244.0,0.61445417]
[1724190250088,0.0518862,59245.0,59244.0,0.563887]
[1724190250688,0.0518862,59245.0,59244.0,0.27052877]
[1724190250991,0.06244048,59245.0,59244.0,0.27053072]
[1724190251392,0.06244048,59245.0,59244.0,0.203087]
[1724190251587,0.0518862,59245.0,59244.0,0.203087]
[1724190251784,0.06244031,59245.0,59244.0,0.203087]
[1724190252287,0.06244031,59245.0,59244.0,0.27054082]
[1724190252489,0.06244031,59245.0,59244.0,0.203087]
[1724190255794,0.05188626,59245.0,59244.0,0.203087]
[1724190255997,0.06244031,59245.0,59244.0,0.203087]
[1724190257497,0.05188626,59245.0,59244.0,0.203087]
[1724190257890,0.05188623,59245.0,59244.0,0.203087]
[1724190258201,0.06244015,59245.0,59244.0,0.203087]
[1724190259103,0.05188623,59245.0,59244.0,0.203087]
[1724190263303,0.00278623,59245.0,59244.0,0.33167602]
[1724190264118,0.00016802,59250.0,59246.0,0.084384]
[1724190264412,0.00278614,59249.0,59246.0,0.084384]
[1724190264607,0.01333969,59248.0,59246.0,0.084384]
[1724190264905,0.00278614,59247.0,59246.0,0.084384]
[1724190265300,0.00278614,59247.0,59246.0,0.086384]
[1724190265515,0.00278614,59247.0,59246.0,0.13701664]
[1724190265898,0.01333972,59247.0,59246.0,0.25271664]
[1724190266211,0.01333972,59247.0,59246.0,0.25371664]
[1724190268021,0.00278615,59247.0,59246.0,0.203084]
[1724190268715,0.01333935,59247.0,59246.0,0.203084]
[1724190269613,0.01333939,59247.0,59246.0,0.203084]
[1724190272214,0.01055332,59247.0,59246.0,0.203084]
[1724190272411,0.01333939,59247.0,59246.0,0.203084]
[1724190273813,0.01333939,59247.0,59246.0,0.563884]
[1724190274014,0.01333939,59247.0,59246.0,0.203084]
[1724190274213,0.01333939,59247.0,59246.0,0.563884]
[1724190274404,0.01333939,59247.0,59246.0,0.203084]
[1724190274915,0.01333939,59247.0,59246.0,0.563884]
[1724190275314,0.01333939,59247.0,59246.0,0.203084]
[1724190275809,0.01333939,59247.0,59246.0,0.563884]
[1724190277912,0.0133394,59247.0,59246.0,0.563884]
[1724190280415,0.01333942,59247.0,59246.0,0.563884]
[1724190280914,0.01333942,59247.0,59246.0,0.447184]
[1724190281311,0.01333942,59247.0,59246.0,0.563884]
[1724190281505,0.01333942,59247.0,59246.0,0.447184]
[1724190281709,0.00278608,59247.0,59246.0,0.563884]
[1724190283210,0.01333946,59247.0,59246.0,0.563884]
[1724190284041,0.0494,59248.0,59246.0,0.563884]
[1724190284321,0.01333947,59247.0,59246.0,0.563884]
[1724190285523,0.0494,59248.0,59246.0,0.563884]
[1724190285720,0.01333915,59247.0,59246.0,0.563884]
[1724190285917,0.01333915,59247.0,59246.0,0.562884]
[1724190286416,0.01333915,59247.0,59246.0,0.563884]
[1724190286719,0.01333915,59247.0,59246.0,0.562884]
[1724190286915,0.01333915,59247.0,59246.0,0.563884]
[1724190288117,0.00278604,59247.0,59246.0,0.563884]
[1724190288313,0.01333924,59247.0,59246.0,0.563884]
[1724190290518,0.01333924,59247.0,59246.0,0.64827889]
[1724190292118,0.00278604,59247.0,59246.0,0.77685827]
[1724190292326,0.01333923,59247.0,59246.0,0.64827889]
[1724190292522,0.01333923,59247.0,59246.0,0.77685901]
[1724190295626,0.01333923,59247.0,59246.0,0.563884]
[1724190296138,0.0494,59248.0,59246.0,0.563884]
[1724190296426,0.01333916,59247.0,59246.0,0.563884]
[1724190296618,0.00278604,59247.0,59246.0,0.563884]
[1724190296818,0.01333923,59247.0,59246.0,0.563884]
[1724190300222,0.0494,59248.0,59246.0,0.563884]
[1724190300418,0.01333908,59247.0,59246.0,0.563884]
[1724190301329,0.01333908,59247.0,59246.0,0.562884]
[1724190301519,0.01333908,59247.0,59246.0,0.563884]
[1724190301723,0.01333908,59247.0,59246.0,0.562884]
[1724190301922,0.01333908,59247.0,59246.0,0.563884]
[1724190302521,0.01333908,59247.0,59246.0,0.69246286]
[1724190307141,0.0494,59248.0,59246.0,0.69246286]
[1724190307333,0.0133391,59247.0,59246.0,0.563884]
[1724190307533,0.0133391,59247.0,59246.0,0.69246287]
[1724190308937,0.0133391,59247.0,59246.0,0.69246238]
[1724190309639,0.0133391,59247.0,59246.0,0.563884]
[1724190309828,0.0133391,59247.0,59246.0,0.562884]
[1724190310029,0.0133391,59247.0,59246.0,0.563884]
[1724190311350,0.01333906,59247.0,59246.0,0.563884]
[1724190312135,0.91969906,59247.0,59246.0,0.3628]
[1724190312335,1.04968206,59247.0,59246.0,0.3628]
[1724190313841,1.04968206,59247.0,59246.0,0.41344853]
[1724190314139,1.04968206,59247.0,59246.0,0.3628]
[1724190315133,1.039129,59247.0,59246.0,0.3628]
[1724190315437,1.04968253,59247.0,59246.0,0.3628]
[1724190316640,1.41048253,59247.0,59246.0,0.002]
[1724190317731,1.04968253,59247.0,59246.0,0.002]
[1724190319637,1.04968363,59247.0,59246.0,0.002]
[1724190320932,1.04968363,59247.0,59246.0,0.0525966]
[1724190322339,0.64968363,59247.0,59246.0,0.0525966]
[1724190322544,0.64968363,59247.0,59246.0,0.002]
[1724190323839,0.64968363,59247.0,59246.0,0.05258699]
[1724190324841,0.64968363,59247.0,59246.0,0.002]
[1724190325647,0.64968363,59247.0,59246.0,0.05258274]
[1724190325944,0.76638363,59247.0,59246.0,0.05258274]
[1724190327359,0.753043,59247.0,59246.0,0.05258274]
[1724190327537,0.76638361,59247.0,59246.0,0.05258274]
[1724190327934,0.76638361,59247.0,59246.0,0.002]
[1724190328651,0.64968361,59247.0,59246.0,0.002]
[1724190328943,0.76638361,59247.0,59246.0,0.002]
[1724190330545,0.26002361,59247.0,59246.0,0.002]
[1724190332346,0.26002361,59247.0,59246.0,0.05258305]
[1724190332851,0.26002361,59247.0,59246.0,0.002]
[1724190333445,0.084392,59241.0,59240.0,0.084392]
[1724190333643,0.09773261,59241.0,59240.0,0.084392]
[1724190335346,0.09773281,59241.0,59240.0,0.084392]
[1724190335545,0.09873281,59241.0,59240.0,0.084392]
[1724190335949,0.09873281,59241.0,59240.0,0.085392]
[1724190336253,0.09873281,59241.0,59240.0,0.001]
[1724190337163,0.10952477,59241.0,59240.0,0.001]
[1724190337555,0.084403,59233.0,59232.0,0.00025329]
[1724190337757,0.084403,59233.0,59225.0,0.05058305]
[1724190337758,0.084412,59227.0,59225.0,0.05058305]
[1724190338062,0.13004081,59226.0,59221.0,0.3608]
[1724190338361,0.1167,59222.0,59221.0,0.3608]
[1724190338664,0.13004545,59222.0,59219.0,0.084423]
[1724190338867,0.09258653,59221.0,59216.0,0.00025329]
[1724190339072,0.1167,59217.0,59216.0,0.00025329]
[1724190339263,0.11048767,59217.0,59216.0,0.00025329]
[1724190339961,0.09648767,59217.0,59216.0,0.00025329]
[1724190340162,0.08248767,59217.0,59216.0,0.00025329]
[1724190340361,0.08248767,59217.0,59216.0,0.00625329]
[1724190341876,0.08248767,59217.0,59216.0,0.01525329]
[1724190342078,0.08348767,59217.0,59216.0,0.01525329]
[1724190342470,0.16791367,59217.0,59216.0,0.01525329]
[1724190343299,0.165126,59217.0,59216.0,0.01525329]
[1724190343471,0.16791369,59217.0,59216.0,0.01525329]
[1724190346374,0.18091369,59217.0,59216.0,0.00025329]
[1724190346673,0.19491369,59217.0,59216.0,0.00125329]
[1724190347178,0.19491369,59217.0,59216.0,0.00025329]
[1724190348175,0.19491369,59217.0,59216.0,0.00125329]
[1724190348771,0.27933969,59217.0,59216.0,0.00125329]
[1724190348968,1.37788769,59217.0,59203.0,0.3608]
[1724190349175,0.084444,59204.0,59203.0,0.3608]
[1724190349367,0.08723169,59204.0,59203.0,0.3608]
[1724190349576,0.13293169,59204.0,59203.0,0.3608]
[1724190350171,0.13293169,59204.0,59203.0,0.3618]
[1724190350372,0.13293169,59204.0,59203.0,0.3628]
[1724190350974,0.14355634,59204.0,59203.0,0.3628]
[1724190351174,0.14355696,59204.0,59203.0,0.3628]
[1724190351581,0.14355696,59204.0,59203.0,0.3608]
[1724190351775,0.16955696,59204.0,59203.0,0.3628]
[1724190351976,0.16955696,59204.0,59203.0,0.002]
[1724190352284,0.51635696,59204.0,59203.0,0.001]
[1724190352582,0.082449,59201.0,59199.0,0.084451]
[1724190352777,0.11948831,59200.0,59199.0,0.084451]
[1724190352986,0.11848831,59200.0,59199.0,0.084451]
[1724190353384,0.084451,59199.0,59198.0,0.00025329]
[1724190353585,0.08623931,59199.0,59198.0,0.00025329]
[1724190355381,0.10023931,59199.0,59198.0,0.00025329]
[1724190355587,0.08623931,59199.0,59198.0,0.00025329]
[1724190355887,0.10923931,59199.0,59198.0,0.00125329]
[1724190357982,0.10023931,59199.0,59198.0,0.00025329]
[1724190358183,0.11423931,59199.0,59198.0,0.00125329]
[1724190358382,0.10023931,59199.0,59198.0,0.00125329]
[1724190358585,0.11423931,59199.0,59198.0,0.00125329]
[1724190358786,1.00699931,59199.0,59198.0,0.00025329]
[1724190359089,1.21285618,59199.0,59198.0,0.00025329]
[1724190360888,0.59137982,59198.0,59197.0,1e-08]
[1724190361085,0.95496813,59198.0,59197.0,1e-08]
[1724190361286,1.26337611,59198.0,59197.0,1e-08]
[1724190361482,1.07066813,59198.0,59197.0,1e-08]
[1724190362291,1.08466813,59198.0,59197.0,1e-08]
[1724190362697,1.09866813,59198.0,59197.0,0.00100001]
[1724190362883,0.59190813,59198.0,59197.0,0.00100001]
[1724190364287,0.48608629,59198.0,59197.0,0.00100001]
[1724190364493,0.60278629,59198.0,59197.0,0.00100001]
[1724190365387,0.24198629,59198.0,59197.0,0.00100001]
[1724190365599,0.23919798,59198.0,59197.0,0.00100001]
[1724190365903,0.24198666,59198.0,59197.0,0.00100001]
[1724190369188,0.24198666,59198.0,59197.0,0.05147676]
[1724190370887,0.24198666,59198.0,59197.0,0.00100001]
[1724190371095,0.24198666,59198.0,59197.0,0.05147676]
[1724190374005,0.24198663,59198.0,59197.0,0.00100001]
[1724190376305,0.24198663,59198.0,59197.0,0.06852882]
[1724190377094,0.24198663,59198.0,59197.0,0.00100001]
[1724190378012,0.23919798,59198.0,59197.0,0.00100001]
[1724190378312,0.23919798,59198.0,59197.0,0.36180001]
[1724190379008,0.23919798,59198.0,59197.0,0.44621102]
[1724190379313,0.23919798,59198.0,59197.0,0.57490249]
[1724190379707,0.23919798,59198.0,59197.0,0.65935649]
[1724190379910,0.24198641,59198.0,59197.0,0.65935649]
[1724190380210,0.1167,59200.0,59199.0,0.084451]
[1724190380403,0.11948838,59200.0,59199.0,0.21314159]
[1724190380903,0.1167,59200.0,59199.0,0.21314159]
[1724190381303,0.084449,59201.0,59200.0,0.08445]
[1724190381498,0.084449,59201.0,59200.0,0.26254059]
[1724190382410,0.1167,59203.0,59202.0,0.084447]
[1724190383101,0.1167,59203.0,59202.0,0.52963541]
[1724190383301,0.1167,59203.0,59202.0,0.445247]
[1724190383810,0.1167,59203.0,59202.0,0.446247]
[1724190384006,0.1167,59203.0,59202.0,0.53063541]
[1724190384202,0.1167,59203.0,59202.0,0.447247]
[1724190384899,0.1167,59203.0,59202.0,0.53163541]
[1724190385098,0.1167,59203.0,59202.0,0.563947]
[1724190385297,0.201141,59206.0,59205.0,0.084442]
[1724190386405,0.211141,59206.0,59205.0,0.15288399]
[1724190386910,0.211141,59206.0,59205.0,0.085442]
[1724190387211,0.105441,59206.0,59205.0,0.27058184]
[1724190387412,0.021,59206.0,59205.0,0.086442]
[1724190387712,0.01,59206.0,59205.0,0.085442]
[1724190387913,0.021,59206.0,59205.0,0.086442]
[1724190388109,0.03187016,59206.0,59205.0,0.086442]
[1724190388312,0.03187016,59206.0,59205.0,0.202142]
[1724190388506,0.03187016,59206.0,59205.0,0.709862]
[1724190388808,0.03187016,59206.0,59205.0,0.7772615]
[1724190388998,0.03087016,59206.0,59205.0,0.7772615]
[1724190389407,0.03087016,59206.0,59205.0,0.709862]
[1724190389604,0.03087016,59206.0,59205.0,0.708862]
[1724190389605,0.02187016,59206.0,59205.0,0.708862]
[1724190389806,0.02887016,59206.0,59205.0,0.709862]
[1724190390410,0.018,59206.0,59205.0,0.709862]
[1724190390609,0.015,59206.0,59205.0,0.203142]
[1724190391116,0.015,59206.0,59205.0,0.7772615]
[1724190392014,0.015,59206.0,59205.0,1.108862]
[1724190392015,0.008,59206.0,59205.0,1.108862]
[1724190392209,0.008,59206.0,59205.0,1.109862]
[1724190392210,0.016,59206.0,59205.0,1.109862]
[1724190393618,0.01305627,59206.0,59205.0,1.109862]
[1724190395813,0.01305627,59206.0,59205.0,1.194305]
[1724190396814,0.01305627,59206.0,59205.0,1.29064082]
[1724190397016,0.01305627,59206.0,59205.0,1.32295241]
[1724190397214,2.7e-07,59206.0,59205.0,1.40739541]
[1724190398423,0.00025329,59209.0,59208.0,0.168876]
[1724190398718,0.01107899,59226.0,59208.0,0.60614741]
[1724190398920,0.1167,59231.0,59226.0,0.1167]
[1724190399220,0.1167,59231.0,59230.0,0.084407]
[1724190400014,0.1167,59231.0,59230.0,0.445207]
[1724190400221,0.05748327,59232.0,59230.0,0.445207]
[1724190400417,0.05748327,59232.0,59230.0,0.561907]
[1724190401024,0.05748327,59232.0,59231.0,0.084406]
[1724190401526,0.00025329,59236.0,59234.0,0.084401]
[1724190401816,0.00025329,59236.0,59235.0,0.5619]
[1724190402018,0.01130309,59236.0,59235.0,0.5619]
[1724190402322,0.00025329,59236.0,59235.0,0.5619]
[1724190402518,0.00025329,59236.0,59235.0,1.46834]
[1724190403025,0.00025329,59236.0,59235.0,1.47938885]
[1724190404217,0.00025329,59236.0,59235.0,1.48038885]
[1724190406822,0.00025329,59236.0,59235.0,1.48138885]
[1724190407223,0.00025329,59236.0,59235.0,1.36368885]
[1724190407522,0.00025329,59236.0,59235.0,1.48038885]
[1724190408620,0.00025329,59236.0,59235.0,1.47938885]
[1724190409320,0.00303961,59236.0,59235.0,1.47938885]
[1724190409922,0.00303961,59236.0,59235.0,1.48038885]
[1724190410125,0.00303961,59236.0,59235.0,1.84118885]
[1724190412224,0.00025329,59236.0,59235.0,1.84118885]
[1724190412915,0.00025329,59236.0,59235.0,1.44118885]
[1724190413316,0.00025329,59236.0,59235.0,1.49145058]
[1724190413520,0.00025329,59236.0,59235.0,1.44118885]
[1724190413721,0.00025329,59236.0,59235.0,1.84118885]
[1724190414425,0.00025329,59236.0,59235.0,1.89145058]
[1724190415327,0.00025329,59236.0,59235.0,1.84118885]
[1724190418318,0.00025329,59236.0,59235.0,1.90820449]
[1724190418830,0.00025329,59236.0,59235.0,1.84118885]
[1724190419223,0.00025329,59236.0,59235.0,1.92558885]
[1724190420433,0.00025329,59236.0,59235.0,2.0093584]
[1724190421537,0.00025329,59236.0,59235.0,2.13793915]
[1724190421825,0.00025329,59236.0,59235.0,2.0541696]
[1724190423124,0.00025329,59236.0,59235.0,1.99274948]
[1724190423419,0.00025329,59236.0,59235.0,1.92558885]
[1724190425027,0.00025329,59236.0,59235.0,1.20398885]
[1724190425231,0.0469,59245.0,59244.0,0.084388]
[1724190425431,0.04968605,59245.0,59244.0,0.561888]
[1724190426328,0.04968605,59245.0,59244.0,0.61230352]
[1724190427120,0.04968605,59245.0,59244.0,0.61430352]
[1724190427325,0.04968605,59245.0,59244.0,0.563888]
[1724190429136,0.0469,59245.0,59244.0,0.563888]
[1724190429327,0.04968605,59245.0,59244.0,0.563888]
[1724190430234,0.04968605,59245.0,59244.0,0.69246859]
[1724190431135,0.04968605,59245.0,59244.0,0.70342484]
[1724190432937,0.04968602,59245.0,59244.0,0.70342352]
[1724190433436,0.00278602,59245.0,59244.0,0.70342352]
[1724190436129,0.00278602,59245.0,59244.0,0.58672352]
[1724190436331,0.00278602,59245.0,59244.0,0.70342352]
[1724190436635,0.00025329,59250.0,59249.0,0.084381]
[1724190436940,0.00303919,59250.0,59249.0,0.561881]
[1724190437840,0.00303919,59250.0,59249.0,0.562881]
[1724190438434,0.00303927,59250.0,59249.0,0.562881]
[1724190438632,0.00303927,59250.0,59249.0,0.563881]
[1724190440733,0.00303927,59250.0,59249.0,0.64818447]
[1724190441130,0.00303927,59250.0,59249.0,0.77675229]
[1724190441339,0.00303927,59250.0,59249.0,0.64818447]
[1724190441539,0.00303927,59250.0,59249.0,0.53148447]
[1724190441739,0.00303927,59250.0,59249.0,0.563881]
[1724190445043,0.00303908,59250.0,59249.0,0.563881]
[1724190445240,0.00303908,59250.0,59249.0,0.447181]
[1724190445437,0.00303908,59250.0,59249.0,0.563881]
[1724190447847,0.00303908,59250.0,59249.0,0.203081]
[1724190448050,0.00303908,59250.0,59249.0,0.563881]
[1724190448643,0.00303908,59250.0,59249.0,0.203081]
[1724190448971,0.00025329,59250.0,59249.0,0.563881]
[1724190449149,0.00303908,59250.0,59249.0,0.563881]
[1724190450440,0.00303908,59250.0,59249.0,0.203081]
[1724190450641,0.00303908,59250.0,59249.0,0.563881]
[1724190450840,0.00303908,59250.0,59249.0,0.6144493]
[1724190451651,0.00303908,59250.0,59249.0,0.9752493]
[1724190451950,0.00303908,59250.0,59249.0,0.2536493]
[1724190452250,0.00303908,59250.0,59249.0,1.00898447]
[1724190452950,0.00303898,59250.0,59249.0,1.00898447]
[1724190454156,0.00303898,59250.0,59249.0,0.28738447]
[1724190454349,0.00303898,59250.0,59249.0,1.05324487]
[1724190455550,0.00303898,59250.0,59249.0,0.93654487]
[1724190455753,0.00303898,59250.0,59249.0,1.05324487]
[1724190457243,0.00303898,59250.0,59249.0,0.33164487]
[1724190457442,0.00303898,59250.0,59249.0,1.05324487]
[1724190458255,0.00303898,59250.0,59249.0,0.33164487]
[1724190458455,0.00303898,59250.0,59249.0,1.05324487]
[1724190459055,0.00303898,59250.0,59249.0,0.33164487]
[1724190459450,0.00303898,59250.0,59249.0,1.05324487]
[1724190460359,0.00303898,59250.0,59249.0,0.203081]
[1724190460658,0.00303898,59250.0,59249.0,0.924681]
[1724190461263,0.003039,59250.0,59249.0,0.924681]
[1724190465463,0.00025329,59250.0,59249.0,0.924681]
[1724190465661,0.003039,59250.0,59249.0,0.924681]
[1724190466967,0.003039,59250.0,59249.0,0.203081]
[1724190467167,0.003039,59250.0,59249.0,0.97525655]
[1724190467355,0.003039,59250.0,59249.0,1.05324598]
[1724190467563,0.003039,59250.0,59249.0,1.05324549]
[1724190471065,0.003039,59250.0,59249.0,0.93654549]
[1724190471266,0.003039,59250.0,59249.0,1.05324549]
[1724190471466,0.003039,59250.0,59249.0,1.13763637]
[1724190471665,0.003039,59250.0,59249.0,1.05324549]
[1724190471862,0.003039,59250.0,59249.0,1.13763626]
[1724190472068,0.003039,59250.0,59249.0,0.8403]
[1724190473169,0.00025329,59250.0,59249.0,0.8403]
[1724190473370,0.00303915,59250.0,59249.0,0.8403]
[1724190474664,0.00303915,59250.0,59249.0,0.924681]
[1724190476675,0.00303915,59250.0,59249.0,0.203081]
[1724190477763,0.01359229,59250.0,59249.0,0.203081]
[1724190483891,0.01359183,59250.0,59249.0,0.203081]
[1724190486377,0.01359183,59250.0,59249.0,0.41604346]
[1724190486581,0.00303918,59250.0,59249.0,0.33165269]
[1724190486882,0.00025329,59250.0,59249.0,0.41598854]
[1724190487484,0.00025329,59250.0,59249.0,0.21495269]
[1724190487694,0.00025329,59250.0,59249.0,0.33165269]
[1724190488090,0.00025329,59250.0,59249.0,0.69245269]
[1724190488886,0.00025329,59250.0,59249.0,0.563881]
[1724190489085,0.00025329,59250.0,59249.0,0.69245479]
[1724190489684,0.00025329,59250.0,59249.0,0.33165479]
[1724190490087,0.00025329,59250.0,59249.0,0.69245479]
[1724190490286,0.00025329,59250.0,59249.0,0.563881]
[1724190497398,0.00025329,59250.0,59249.0,0.69244387]
[1724190499188,0.00025329,59250.0,59249.0,1.05324387]
[1724190502298,0.01055177,59254.0,59251.0,0.084377]
[1724190502500,0.01055177,59254.0,59253.0,0.1167]
[1724190504002,0.01362412,59255.0,59253.0,0.1167]
[1724190504298,0.01055161,59254.0,59253.0,0.202075]
[1724190504698,0.01055161,59255.0,59253.0,0.202075]
[1724190504900,0.01055161,59254.0,59253.0,0.202075]
[1724190505090,0.01055155,59255.0,59254.0,0.084373]
[1724190505290,0.01055121,59258.0,59254.0,0.17676002]
[1724190505487,0.06176918,59259.0,59258.0,0.084368]
[1724190505693,0.07232033,59259.0,59258.0,0.084368]
[1724190507203,0.07232033,59259.0,59258.0,0.085368]
[1724190507600,0.02372033,59259.0,59258.0,0.085368]
[1724190508094,0.02372033,59259.0,59258.0,0.086368]
[1724190509905,0.02372033,59259.0,59258.0,0.447168]
[1724190514706,0.02372008,59259.0,59258.0,0.447168]
[1724190514906,0.01316918,59259.0,59258.0,0.447168]
[1724190515505,0.02372008,59259.0,59258.0,0.447168]
[1724190516001,0.01316918,59259.0,59258.0,0.447168]
[1724190516203,0.02372008,59259.0,59258.0,0.447168]
[1724190517312,0.01071892,59259.0,59258.0,0.447168]
[1724190517605,0.00016802,59259.0,59258.0,0.447168]
[1724190520409,0.00016802,59259.0,59258.0,0.086368]
[1724190520617,0.00016802,59259.0,59258.0,0.447168]
[1724190523110,0.00016802,59259.0,59258.0,0.563868]
[1724190523310,0.00016802,59259.0,59258.0,0.82610053]
[1724190523507,0.00016802,59259.0,59258.0,0.74181592]
[1724190523710,0.00016802,59259.0,59258.0,0.82610056]
[1724190524129,0.00016802,59259.0,59258.0,0.70940056]
[1724190524415,0.00016802,59259.0,59258.0,0.74181592]
[1724190525619,0.00016802,59259.0,59258.0,0.69241592]
[1724190528813,0.00016802,59259.0,59258.0,0.69141592]
[1724190529012,0.00016802,59259.0,59258.0,1.05321592]
[1724190530312,0.00016802,59259.0,59258.0,0.33161592]
[1724190530509,0.00016802,59259.0,59258.0,1.05321592]
[1724190533727,0.00016802,59259.0,59258.0,0.33161592]
[1724190533919,0.00016802,59259.0,59258.0,1.05321592]
[1724190535623,0.00016802,59259.0,59258.0,0.924668]
[1724190536321,0.00016802,59259.0,59258.0,0.203068]
[1724190536623,0.00016802,59259.0,59258.0,0.924668]
[1724190542527,0.00016802,59259.0,59258.0,1.15372677]
[1724190543227,0.00016802,59259.0,59258.0,1.05320331]
[1724190543426,0.00016802,59259.0,59258.0,0.33160331]
[1724190543734,0.00016802,59259.0,59258.0,1.05320415]
[1724190544830,0.00016802,59259.0,59258.0,0.33160415]
[1724190545027,0.00016802,59259.0,59258.0,1.05320415]
[1724190545523,0.00016802,59259.0,59258.0,0.33160415]
[1724190545724,0.00016802,59259.0,59258.0,1.05320415]
[1724190546424,0.00016802,59259.0,59258.0,1.15372761]
[1724190547325,0.3719,59268.0,59265.0,0.084358]
[1724190547524,0.3719,59268.0,59267.0,0.3608]
[1724190547731,0.05970125,59268.0,59267.0,0.3608]
[1724190548627,0.05970125,59268.0,59267.0,0.3618]
[1724190550029,0.05970125,59268.0,59267.0,0.446155]
[1724190550232,0.05970125,59268.0,59267.0,0.447155]
[1724190550421,0.07025079,59268.0,59267.0,0.447155]
[1724190551147,0.14405425,59268.0,59267.0,0.447155]
[1724190551327,0.15460379,59268.0,59267.0,0.447155]
[1724190555354,0.14405425,59268.0,59267.0,0.447155]
[1724190555532,0.1546042,59268.0,59267.0,0.447155]
[1724190558857,0.14405425,59268.0,59267.0,0.447155]
[1724190559137,0.15460402,59268.0,59267.0,0.447155]
[1724190559844,0.14405425,59268.0,59267.0,0.447155]
[1724190560135,0.15460402,59268.0,59267.0,0.447155]
[1724190562437,0.14405425,59268.0,59267.0,0.447155]
[1724190562631,0.15460402,59268.0,59267.0,0.447155]
[1724190563739,0.15738914,59268.0,59267.0,0.447155]
[1724190567357,0.15853196,59268.0,59267.0,0.447155]
[1724190567665,0.15853195,59268.0,59267.0,0.447155]
[1724190568661,0.10049371,59268.0,59267.0,0.447155]
[1724190569359,0.07417895,59268.0,59267.0,0.447155]
[1724190569854,0.0636292,59268.0,59267.0,0.447155]
[1724190570159,0.07417927,59268.0,59267.0,0.447155]
[1724190570560,0.0747509,59268.0,59267.0,0.447155]
[1724190570959,0.1591039,59268.0,59267.0,0.447155]
[1724190571154,0.18541798,59268.0,59267.0,0.447155]
[1724190571761,0.15910405,59268.0,59267.0,0.447155]
[1724190572460,0.15967568,59268.0,59267.0,0.086355]
[1724190572759,0.66583568,59268.0,59267.0,0.06949772]
[1724190573063,0.66583575,59268.0,59267.0,0.002]
[1724190573380,0.66305045,59268.0,59267.0,0.002]
[1724190573562,0.66583618,59268.0,59267.0,0.05261277]
[1724190575148,0.66640781,59268.0,59267.0,0.05261277]
[1724190575879,0.65585729,59268.0,59267.0,0.05261277]
[1724190576057,0.69273311,59268.0,59267.0,0.05261277]
[1724190577163,0.69330436,59268.0,59267.0,0.05261277]
[1724190577551,1.09330436,59268.0,59267.0,0.05261277]
[1724190577755,1.06697903,59268.0,59267.0,0.002]
[1724190579265,0.590555,59267.0,59266.0,0.0505951]
[1724190579454,0.084359,59264.0,59263.0,0.0505951]
[1724190579654,0.084361,59263.0,59262.0,0.0505951]
[1724190579881,0.09769682,59263.0,59262.0,0.0505951]
[1724190580067,0.590601,59263.0,59262.0,0.0505951]
[1724190580261,0.60293787,59263.0,59262.0,0.0505951]
[1724190580562,0.084365,59260.0,59259.0,0.1167]
[1724190580766,0.09670187,59260.0,59259.0,0.1167]
[1724190580968,0.10127333,59260.0,59259.0,0.1167]
[1724190581560,0.10127333,59260.0,59259.0,0.18413591]